Cogmind - Beta 10.2 @@@ ROGUE MODE // 2021.10.24 @ 02:17:40 Player: Peace Result: Destroyed by S-10 Pest with Light Assault Rifle Performance ------------- Evolutions (0) 0 Regions Visited (4) 800 Robots Destroyed (0) 0 Value Destroyed (0) 0 Prototype IDs (0) 0 Alien Tech Used (0) 0 Bonus (0) 0 TOTAL SCORE: 800 Bonus ------- None Cogmind --------- Core Integrity 0/250 Matter 243/300 Energy 100/100 System Corruption 0% Temperature Cool (0) Movement Flying (40) Location -9/Mines Parts ------- > --- POWER (1) -------- (None) > --- PROPULSION (2) --- Flight Unit Flight Unit > --- UTILITY (2) ------ Terrain Scan Processor Makeshift System Shield > --- WEAPON (2) ------- (None) > --- INVENTORY (4) ---- Flight Unit Makeshift Sensor Array Experimental Sensor Array Makeshift Cloaking Device Peak State ------------ > --- POWER ------------ (None) > --- PROPULSION ------- Flight Unit Flight Unit > --- UTILITY ---------- Terrain Scan Processor Makeshift System Shield > --- WEAPON ----------- (None) > --- INVENTORY -------- Makeshift Sensor Array Makeshift Cloaking Device Signal Generator [Rating: 9] Favorites ----------- Power None Propulsion Flight Unit Flight Unit Flight Unit Utility Terrain Scan Processor Processor Terrain Scan Processor Hackware Makeshift System Shield Weapon EM Pulse Gun Energy Gun EM Pulse Gun Build | -11 -10 -10 -10 -9 ------- Run | Scr Mat Min Exi Min Slots Evolved . | . . . . . Power . | . . . . . Propulsion . | . . . . . Utility . | . . . . . Weapon . | . . . . . Parts Attached 6 | . 2 . 1 3 Power . | . . . . . Engine . | . . . . . Core . | . . . . . Reactor . | . . . . . Propulsion 3 | . . . . 3 Treads . | . . . . . Leg . | . . . . . Wheel . | . . . . . Hover . | . . . . . Flight 3 | . . . . 3 Utility 2 | . 1 . 1 . Device . | . . . . . Storage . | . . . . . Processor 1 | . 1 . . . Hackware 1 | . . . 1 . Protection . | . . . . . Artifact . | . . . . . Weapon 1 | . 1 . . . Energy Gun 1 | . 1 . . . Energy Cannon . | . . . . . Ballistic Gun . | . . . . . Ballistic Cannon . | . . . . . Launcher . | . . . . . Special Weapon . | . . . . . Impact Weapon . | . . . . . Slashing Weapon . | . . . . . Piercing Weapon . | . . . . . Special Melee Weapon . | . . . . . Unidentified Prototypes . | . . . . . Parts Lost 1 | . 1 . . . Power . | . . . . . Propulsion . | . . . . . Utility . | . . . . . Weapon 1 | . 1 . . . Highest Loss Streak 1 | . 1 . . . Average Slot Usage (%) 28 | . 11 14 21 52 Flight 6 | . . . . 23 Processor 12 | . 4 14 14 14 Hackware 7 | . . . 7 14 Naked Turns 16 | . 16 . . . Heaviest Build 2 | . 2 . . . Greatest Support 8 | 3 3 3 3 8 Greatest Overweight (x) . | . . . . . Average Overweight (x) . | . . . . . Largest Inventory Capacity 4 | 4 4 4 4 4 Average Capacity 4 | 4 4 4 4 4 Most Carried 4 | . . 1 3 4 Average Carried 2 | . . . 1 3 Final Capacity 4 | 4 4 4 4 4 Final Carried 4 | . . 1 3 4 Class Distribution -------------------- 100% | Mutant Dominant Class ---------------- Mutant | -10/Materials Mutant | -10/Mines Mutant | -10/Exiles Mutant | -9/Mines Resources | -11 -10 -10 -10 -9 ----------- Run | Scr Mat Min Exi Min Matter Collected 198 | 143 . . . 55 Remotely . | . . . . . Salvage Created . | . . . . . Parts . | . . . . . Haulers Intercepted . | . . . . . Recyclers Shooed . | . . . . . Parts Field Recycled . | . . . . . Retrieved Matter . | . . . . . Parts Self-Destructed . | . . . . . Prevented . | . . . . . Kills | -11 -10 -10 -10 -9 ------- Run | Scr Mat Min Exi Min Combat Hostiles Destroyed . | . . . . . Classes Destroyed . | . . . . . Best Kill Streak . | . . . . . Combat Bots Only . | . . . . . Max Kills in Single Turn . | . . . . . Gunslinging . | . . . . . Exploded . | . . . . . Melee . | . . . . . Uniques/NPCs Destroyed . | . . . . . Combat | -11 -10 -10 -10 -9 -------- Run | Scr Mat Min Exi Min Damage Taken 328 | . 110 . . 218 Core 250 | . 55 . . 195 Absorbed by Shields . | . . . . . Core Remaining (%) 100 | 100 . . . . Volleys Fired 8 | . 8 . . . Largest 1 | . 1 . . . Hottest 40 | . 40 . . . Shots Fired 8 | . 8 . . . Gun 8 | . 8 . . . Cannon . | . . . . . Launcher . | . . . . . Special . | . . . . . Kinetic . | . . . . . Thermal . | . . . . . Explosive . | . . . . . Electromagnetic 8 | . 8 . . . Robot Hit Streak 2 | . 2 . . . Robot Miss Streak 1 | . 1 . . . Penetration Max . | . . . . . Secondary Targets . | . . . . . Shots Hit Robots 4 | . 4 . . . Core Hits 2 | . 2 . . . Critical Hits . | . . . . . Critical Kills . | . . . . . Critical Parts Destroyed . | . . . . . Melee Attacks . | . . . . . Impact . | . . . . . Slashing . | . . . . . Piercing . | . . . . . Sneak Attacks . | . . . . . Combat Hostiles . | . . . . . Follow-up Attacks . | . . . . . Damage Inflicted 53 | . 53 . . . Guns 53 | . 53 . . . Cannons . | . . . . . Explosions . | . . . . . Melee . | . . . . . Ramming . | . . . . . Kinetic . | . . . . . Thermal . | . . . . . Explosive . | . . . . . Electromagnetic 53 | . 53 . . . Impact . | . . . . . Slashing . | . . . . . Piercing . | . . . . . Highest Corruption . | . . . . . Average Corruption . | . . . . . Corruption Purged . | . . . . . Overload Shots . | . . . . . Overflow Damage . | . . . . . Projectiles . | . . . . . Explosions . | . . . . . Melee . | . . . . . Knockbacks . | . . . . . Impact . | . . . . . Kinetic . | . . . . . Secondary . | . . . . . Self-Inflicted Damage . | . . . . . Shots . | . . . . . Rammed . | . . . . . Targets Rammed . | . . . . . Kicked . | . . . . . Crushed . | . . . . . Highest Temperature 15 | . 15 . . . Average Temperature 7 | . 7 . . . Received Heat Transfer 75 | . 63 . . 12 Siege Activations . | . . . . . Robots Corrupted . | . . . . . Combat Hostiles . | . . . . . Parts Fried . | . . . . . Impact Corruptions . | . . . . . Robots Melted . | . . . . . Combat Hostiles . | . . . . . Parts Melted . | . . . . . Heat Transferred . | . . . . . Parts Sabotaged . | . . . . . Parts Stolen . | . . . . . Parts Stripped . | . . . . . Power Chain Reactions . | . . . . . Missiles Intercepted . | . . . . . Alert | -11 -10 -10 -10 -9 ------- Run | Scr Mat Min Exi Min Peak Influence 45 | . 35 13 . 45 Initial 13 | . . 13 . . Average 15 | . 8 13 . 20 Maximum Alert Level . | . . . . . Low Security (%) 100 | 100 100 100 . 100 Level 1 . | . . . . . Level 2 . | . . . . . Level 3 . | . . . . . Level 4 . | . . . . . Level 5 . | . . . . . High Security . | . . . . . Max Security . | . . . . . Squads Dispatched . | . . . . . Investigation . | . . . . . Extermination . | . . . . . Reinforcement . | . . . . . Assault . | . . . . . Garrison . | . . . . . Intercept . | . . . . . Construction Impeded . | . . . . . Haulers Reinforced . | . . . . . Stealth | -11 -10 -10 -10 -9 --------- Run | Scr Mat Min Exi Min Distress Signals 1 | . 1 . . . Communications Jammed . | . . . . . Distress Signals . | . . . . . Times Spotted 42 | . 4 . . 38 Peak Tracking Total 23 | . 3 . . 23 Tactical Retreats 3 | . 1 . . 2 Traps | -11 -10 -10 -10 -9 ------- Run | Scr Mat Min Exi Min Traps Triggered . | . . . . . Indirectly . | . . . . . Trap Hack Attempts . | . . . . . Triggered . | . . . . . Disarmed . | . . . . . Reprogrammed . | . . . . . Reused . | . . . . . Traps Extracted . | . . . . . Installed . | . . . . . Triggered 1 | . . . . 1 Machines | -11 -10 -10 -10 -9 ---------- Run | Scr Mat Min Exi Min Machines Disabled . | . . . . . Max in Single Turn . | . . . . . Machines Sabotaged . | . . . . . Garrisons Compromised . | . . . . . Overloaded Fab Kills . | . . . . . Fab Network Shutdowns . | . . . . . Hacking | -11 -10 -10 -10 -9 --------- Run | Scr Mat Min Exi Min Machines Accessed 1 | . . . 1 . Terminals . | . . . . . Fabricators . | . . . . . Repair Stations . | . . . . . Recycling Units . | . . . . . Scanalyzers . | . . . . . Garrison Access . | . . . . . Total Hacks 7 | . . . 7 . Successful 7 | . . . 7 . Failed . | . . . . . Catastrophic . | . . . . . Database Lockouts . | . . . . . Manual . | . . . . . Terminals . | . . . . . Fabricators . | . . . . . Repair Stations . | . . . . . Recycling Units . | . . . . . Scanalyzers . | . . . . . Garrison Access . | . . . . . Terminal Hacks 7 | . . . 7 . Record 7 | . . . 7 . Fabricator Hacks . | . . . . . Repair Station Hacks . | . . . . . Recycling Unit Hacks . | . . . . . Scanalyzer . | . . . . . Garrison Access Hacks . | . . . . . Unauthorized Hacks . | . . . . . Terminals . | . . . . . Fabricators . | . . . . . Repair Stations . | . . . . . Recycling Units . | . . . . . Scanalyzers . | . . . . . Garrison Access . | . . . . . Data Cores Recovered . | . . . . . Used . | . . . . . Hacking Detections . | . . . . . Full Trace Events . | . . . . . Feedback Events . | . . . . . Feedback Blocked . | . . . . . Robot Schematics Acquired . | . . . . . Robots Built . | . . . . . Matter . | . . . . . Time . | . . . . . Total Robot Build Rating . | . . . . . Part Schematics Acquired . | . . . . . Parts Built . | . . . . . Matter . | . . . . . Time . | . . . . . Total Part Build Rating . | . . . . . Parts Repaired . | . . . . . Time . | . . . . . Parts Recycled . | . . . . . Recycled Matter . | . . . . . Retrieved Matter . | . . . . . Retrieved Components . | . . . . . Parts Scanalyzed . | . . . . . Part Schematics Acquired . | . . . . . Parts Damaged . | . . . . . Bothacking | -11 -10 -10 -10 -9 ------------ Run | Scr Mat Min Exi Min Used RIF Installer . | . . . . . Robots Hacked . | . . . . . Non-combat . | . . . . . Combat . | . . . . . Robot Hacks Applied . | . . . . . Relay Couplers Released . | . . . . . Robots Rewired 3 | . . . 3 . Allies Hacked . | . . . . . Hacks Repelled . | . . . . . Allies | -11 -10 -10 -10 -9 -------- Run | Scr Mat Min Exi Min Total Allies 3 | . . . 3 . Largest Group 3 | . . . 3 . Highest-Rated Group 50 | . . . 50 . Highest-Rated Ally 21 | . . . 21 . Total Orders . | . . . . . Ally Attacks . | . . . . . Total Damage . | . . . . . Kills . | . . . . . Allies Corrupted . | . . . . . Allies Melted . | . . . . . Intel | -11 -10 -10 -10 -9 ------- Run | Scr Mat Min Exi Min Robot Analysis Total . | . . . . . Derelict Logs Recovered 1 | . . . . 1 Drone Launches . | . . . . . Drone Recoveries . | . . . . . Exploration | -11 -10 -10 -10 -9 ------------- Run | Scr Mat Min Exi Min Turns Passed 476 | 10 66 28 240 132 Spaces Moved 906 | 20 76 52 452 306 Core 634 | 20 76 52 452 34 Treads . | . . . . . Legs . | . . . . . Wheels . | . . . . . Hover . | . . . . . Flight 272 | . . . . 272 Fastest Speed 37 | 50 50 50 50 37 Average Speed 46 | 50 50 50 50 40 Slowest Speed 50 | 50 50 50 50 50 Overloaded Moves . | . . . . . Propulsion Burnouts . | . . . . . Robots Hopped 3 | . . . . 3 Cave-ins Triggered . | . . . . . Exploration Rate (%) 39 | 4 26 14 88 65 Regions Visited 4 Branch Regions 3 Pre-discovered Areas 1 | . . . 1 . Known Exits Taken . | . . . . . Unknown Exits Taken 4 | 1 1 1 1 . Scrap Searched 2 | . . . . 2 Spaces Dug . | . . . . . Terrain Destroyed . | . . . . . Melee . | . . . . . Projectile . | . . . . . AOE . | . . . . . Terrain Rammed . | . . . . . Walls Destroyed . | . . . . . Machines Disabled . | . . . . . Actions | -11 -10 -10 -10 -9 --------- Run | Scr Mat Min Exi Min Total 939 | 19 94 53 465 308 Wait 10 | . 9 1 . . Move 897 | 19 75 51 451 301 Hop 2 | . . . . 2 Pick Up 5 | . . 1 3 1 Fast Attach 5 | . 2 . 1 2 Attach . | . . . . . Detach . | . . . . . Swap 1 | . . . . 1 Drop 2 | . . . 1 1 Fire 8 | . 8 . . . Melee . | . . . . . Ram . | . . . . . Kick . | . . . . . Crush . | . . . . . Escape Stasis . | . . . . . Rewire 9 | . . . 9 . Trap . | . . . . . Miscellaneous . | . . . . . Route ------- -11/Scrapyard -10/Materials -10/Mines -10/Exiles -9/Mines History --------- Turn | Location | Event 4 | -11/Scrapyard | Discovered new exit (range 13) 11 | -11/Scrapyard | Entered Materials 72 | -10/Materials | Discovered new exit (range 9) 77 | -10/Materials | Entered Mines 81 | -10/Mines | Met a Derelict testing a Signal Generator 87 | -10/Mines | Found Signal Generator 103 | -10/Mines | Deemed a non-threat by the Exiles lab entrance 103 | -10/Mines | Discovered new exit (range 5) 105 | -10/Mines | Entered Exiles 105 | -10/Exiles | Found Exiles lab destroyed 312 | -10/Exiles | Build established: Mutant 316 | -10/Exiles | Learned location of Zion (-6) 338 | -10/Exiles | Discovered new exit (range 10) 345 | -10/Exiles | Entered Mines 359 | -9/Mines | Core integrity fell below 50% 360 | -9/Mines | Core integrity fell below 20% 374 | -9/Mines | Learned Materials stockpile data 415 | -9/Mines | Assembled infested the area 423 | -9/Mines | Found a damaged Exp. Sensor Array with a note attached 424 | -9/Mines | Found Prototype Device 477 | -9/Mines | Destroyed by S-10 Pest with Light Assault Rifle Last Messages --------------- 00435_ Found Imp. Signal Interpreter. 00435_ Found Cooling System. 00435_ Found Med. Armor Plating. 00435_ Found Lrg. Matter Pod. 00435_ Found 22 Matter. 00436_ Acquired 22 matter. 00436_ ALERT: Intercepting significant anomalous signal. Redirecting assault force. 00438_ ALERT: Intercepting significant anomalous signal. Redirecting assault force. 00439_ ALERT: Intercepting significant anomalous signal. Redirecting assault force. 00457_ Searching scrap... 00457_ Found Med. Storage Unit. 00457_ Found Mining Claw. 00457_ Found Imp. Light Cannon. 00457_ Found Seismic Analyzer. 00457_ Found 19 Matter. 00458_ Acquired 19 matter. 00475_ L-31 Rogue destroyed. Map ----- +----------------------------------------------------+ | | | | | | | | | | | | | | | | | | | | | | | | | | | | | | | | | ???????????????????????????????????????? | | ???????????????????????????????????????? | | ???????????????????????????????????????? | | ???????????????????????????????????????? | | ???????????????????????????????????????? | | ???????????????????????????????????????? | | ???????????????????????????????????????? | | ?????+???????????????####??????????????? | | ?????# ######??## ##?????????????? | | ?????# s @ #??# ##????????????? | | ?????#s s #### #??# ##???????????? | | ?????#?????????# #### #???????????? | | ???????????????# #???????????? | | ???????######### ##???????????? | | ???????# #### ####????????????? | | ???????# """ #??# ##???????????????? | | ???????# """ #??# #????????????????? | | ???????# """ #??# ##????????????????? | | ???????# #?## #?????????????????? | | ???????# """ #?#= ##????????????????? | | ???????# """ ###%/ #????????????????? | | ???????# """ * #????????????????? | | ???????# #????????????????? | | ???????# #### ! #????????????????? | | ???????# #??# % #????????????????? | | ???????#### ###??# #????????????????? | | ??????????# #????# #???????????????? | | ??????????# #???? #??????????????? | | ??????????# #???? " ?????????????? | | ??????????# #???? *????????????? | | ??????????# #???? #####???????????? | | ??????????# #??## #???????????????# | | ??????????# #### #??????????????## | | ??????????# ##?????????????#" | +----------------------------------------------------+ Best States ------------- Heat Dissipation 25 Energy Generation 5 Energy Capacity 100 Matter Stores 243 Matter Capacity 300 Sight Range 16 Terrain Scan Density 85 Evasion (%) 62 Defensive Hacking 11 Item Schematics ----------------- None Robot Schematics ------------------ None Fabricated ------------ Nothing Alien Tech Used ----------------- None Achievements -------------- None Challenges ------------ None Game ------ Seed DroneNuclearDrive Manual? 0 Play Time 00:08:45 Cumulative 78.2 hours Start 2021.10.24 @ 02:11:11 End 2021.10.24 @ 02:17:40 Sessions 1 Manual Loads 0 Difficulty Rogue Special Mode None Game No. 115 Rogue 115 Adventurer 0 Explorer 0 Win Type - Total 0 Types 0/0/0/0/0/0/0/0/0 Lore% 39 Gallery% 57 Achievement% 38 Wizard Run 0 Options --------- ASCII 0 Keyboard 1 Movement Vi Keybinds 0 Fullscreen 1 Font 18/SmallcapsGlow Map View 76x50 Tactical HUD 1 Map Filters NONE Filters NONE Steam 1 RUN: b647f89b-d018-49c0-b7c9-00edd6984254